[Event "EYCC Open-U14 2019"]
[Site "Bratislava"]
[Date "2019.08.09"]
[Round "8.24"]
[White "Unneland, Mathias"]
[Black "Bochnicka, Vladimir"]
[Result "0-1"]
[ECO "D27"]
[WhiteElo "1966"]
[BlackElo "2169"]
[Annotator "NA"]
[PlyCount "52"]
[EventDate "2019.08.02"]
[EventType "swiss"]
[EventCountry "SVK"]
[SourceTitle "playchess.com"]
[Source "ChessBase"]
[SourceQuality "1"]
[TimeControl "40/5400+30:1800+30"]

1. d4 {[%emt 0:00:00]} d5 {[%emt 0:00:00]} 2. c4 {[%emt 0:00:00]} dxc4 {[%emt 0:00:00]} 3. Nf3 {[%emt 0:00:00]} Nf6 {[%emt 0:00:00]} 4. e3 {[%emt 0:00:00]} e6 {[%emt 0:00:00]} 5. Bxc4 {[%emt 0:00:00]} c5 {[%emt 0:00:00]} 6. O-O {[%emt 0:00:12]} a6 {[%emt 0:00:00]} 7. Bb3 {[%emt 0:00:20]} b5 {[%emt 0:00:27]} 8. a4 {[%emt 0:01:08]} Bb7 {[%emt 0:00:33]} 9. axb5 {[%emt 0:01:02]} axb5 {[%emt 0:01:41]} 10. Rxa8 {[%emt 0:00:19]} Bxa8 {[%emt 0:00:05]} 11. Qe2 {[%emt 0:14:42]} Nbd7 {[%emt 0:36:54]} 12. Qxb5 {[%emt 0:14:07]} Bxf3 {[%emt 0:00:49]} 13. gxf3 {[%emt 0:00:17]} cxd4 {[%emt 0:00:09]} 14. Rd1 {[%emt 0:03:39]} Bd6 {[%emt 0:00:47]} 15. Rxd4 {[%emt 0:06:33]} Qe7 {[%emt 0:04:07]} 16. Ba4 {[%emt 0:09:13]} O-O {[%emt 0:10:30]} 17. Qc6 {[%emt 0:02:57]} Bb8 {[%emt 0:00:07]} 18. Bd2 {[%emt 0:07:54]} Ne5 {[%emt 0:01:15]} 19. Qb6 {[%emt 0:03:38]} Nd5 {[%emt 0:03:59]} 20. Rxd5 {[%emt 0:01:40]} exd5 {[%emt 0:00:09]} 21. Bb4 {[%emt 0:01:54]} Nxf3+ {[%emt 0:12:55]} 22. Kf1 {[%emt 0:01:20]} Qe4 {[%emt 0:00:11]} 23. Bxf8 {[%emt 0:05:17]} Qc4+ {[%emt 0:01:26]} 24. Kg2 {[%emt 0:00:06]} Ne1+ {[%emt 0:00:08]} 25. Kg1 {[%emt 0:00:52]} Bxh2+ {[%emt 0:01:43]} 26. Kxh2 {[%emt 0:00:08]} Qg4 {[%emt 0:00:13]} 0-1

[Event "EYCC Open-U14 2019"]
[Site "Bratislava"]
[Date "2019.08.09"]
[Round "8.25"]
[White "Vaupot, Luka"]
[Black "Shoshin, Kirill"]
[Result "1-0"]
[ECO "E04"]
[WhiteElo "1939"]
[BlackElo "2089"]
[Annotator "NA"]
[PlyCount "89"]
[EventDate "2019.08.02"]
[EventType "swiss"]
[EventCountry "SVK"]
[SourceTitle "playchess.com"]
[Source "ChessBase"]
[SourceQuality "1"]
[TimeControl "40/5400+30:1800+30"]

1. d4 {[%emt 0:00:00]} Nf6 {[%emt 0:00:00]} 2. c4 {[%emt 0:00:00]} e6 {[%emt 0:00:00]} 3. Nf3 {[%emt 0:00:00]} d5 {[%emt 0:00:00]} 4. g3 {[%emt 0:00:00]} dxc4 {[%emt 0:00:03]} 5. Bg2 {[%emt 0:00:00]} a6 {[%emt 0:00:13]} 6. a4 {[%emt 0:08:53]} Nc6 {[%emt 0:05:25]} 7. O-O {[%emt 0:06:35]} Rb8 {[%emt 0:02:35]} 8. a5 {[%emt 0:01:36]} b5 {[%emt 0:01:39]} 9. axb6 {[%emt 0:00:19]} cxb6 {[%emt 0:00:04]} 10. Bf4 {[%emt 0:00:52]} Bd6 {[%emt 0:13:30]} 11. Ne5 {[%emt 0:04:14]} Nb4 {[%emt 0:02:43]} 12. Bd2 {[%emt 0:13:48]} Bd7 {[%emt 0:17:28]} 13. Nxc4 {[%emt 0:07:00]} Bb5 {[%emt 0:02:27]} 14. Nxd6+ {[%emt 0:02:45]} Qxd6 {[%emt 0:00:07]} 15. Bf4 {[%emt 0:00:12]} Qd8 {[%emt 0:00:39]} 16. Bxb8 {[%emt 0:00:06]} Qxb8 {[%emt 0:00:01]} 17. Nc3 {[%emt 0:01:08]} Bd7 {[%emt 0:01:01]} 18. Qb3 {[%emt 0:06:16]} Qd6 {[%emt 0:00:22]} 19. Rfd1 {[%emt 0:00:41]} O-O {[%emt 0:00:30]} 20. e4 {[%emt 0:00:30]} Qe7 {[%emt 0:00:35]} 21. e5 {[%emt 0:06:53]} Ng4 {[%emt 0:02:11]} 22. Ne4 {[%emt 0:03:01]} a5 {[%emt 0:01:12]} 23. Nd6 {[%emt 0:03:16]} f6 {[%emt 0:00:18]} 24. Nc4 {[%emt 0:03:34]} fxe5 {[%emt 0:01:13]} 25. Nxe5 {[%emt 0:01:24]} Nxe5 {[%emt 0:04:14]} 26. dxe5 {[%emt 0:00:04]} Qf7 {[%emt 0:02:58]} 27. Rd2 {[%emt 0:04:10]} Bc6 {[%emt 0:00:57]} 28. Bxc6 {[%emt 0:01:35]} Nxc6 {[%emt 0:00:06]} 29. Qe3 {[%emt 0:00:04]} Qf5 {[%emt 0:00:39]} 30. f4 {[%emt 0:03:43]} Nb4 {[%emt 0:05:07]} 31. Qxb6 {[%emt 0:03:39]} Nd5 {[%emt 0:00:07]} 32. Qxa5 {[%emt 0:01:32]} Qg4 {[%emt 0:01:17]} 33. Rxd5 {[%emt 0:01:10]} exd5 {[%emt 0:00:09]} 34. Qxd5+ {[%emt 0:00:01]} Kh8 {[%emt 0:00:02]} 35. Ra8 {[%emt 0:00:09]} Qf5 {[%emt 0:00:50]} 36. Rxf8+ {[%emt 0:00:12]} Qxf8 {[%emt 0:00:02]} 37. Qd6 {[%emt 0:03:06]} Qc8 {[%emt 0:00:10]} 38. e6 {[%emt 0:00:57]} Qc1+ {[%emt 0:00:11]} 39. Kg2 {[%emt 0:00:02]} Qc2+ {[%emt 0:00:44]} 40. Kh3 {[%emt 0:00:00]} h5 {[%emt 0:00:00]} 41. Qf8+ {[%emt 0:00:20]} Kh7 {[%emt 0:00:33]} 42. e7 {[%emt 0:00:11]} Qd3 {[%emt 0:02:57]} 43. e8=Q {[%emt 0:00:33]} Qf1+ {[%emt 0:00:09]} 44. Kh4 {[%emt 0:00:04]} g5+ {[%emt 0:00:06]} 45. Kxg5 {[%emt 0:00:37]} 1-0

[Event "EYCC Open-U14 2019"]
[Site "Bratislava"]
[Date "2019.08.09"]
[Round "8.26"]
[White "Dzida, Kamil"]
[Black "Wernberg, Hugo"]
[Result "0-1"]
[ECO "B90"]
[WhiteElo "1987"]
[BlackElo "1963"]
[Annotator "NA"]
[PlyCount "120"]
[EventDate "2019.08.02"]
[EventType "swiss"]
[EventCountry "SVK"]
[SourceTitle "playchess.com"]
[Source "ChessBase"]
[SourceQuality "1"]
[TimeControl "40/5400+30:1800+30"]

1. e4 {[%emt 0:00:00]} c5 {[%emt 0:00:00]} 2. Nf3 {[%emt 0:00:00]} d6 {[%emt 0:00:00]} 3. d4 {[%emt 0:00:00]} cxd4 {[%emt 0:00:00]} 4. Nxd4 {[%emt 0:00:00]} Nf6 {[%emt 0:00:00]} 5. Nc3 {[%emt 0:00:00]} a6 {[%emt 0:00:03]} 6. Be3 {[%emt 0:00:00]} e6 {[%emt 0:00:31]} 7. g4 {[%emt 0:00:47]} e5 {[%emt 0:00:52]} 8. Nf5 {[%emt 0:00:04]} g6 {[%emt 0:00:29]} 9. Bg2 {[%emt 0:01:03]} gxf5 {[%emt 0:05:42]} 10. exf5 {[%emt 0:00:03]} Rg8 {[%emt 0:05:15]} 11. h3 {[%emt 0:05:00]} Nc6 {[%emt 0:05:46]} 12. Bf3 {[%emt 0:19:38]} d5 {[%emt 0:14:09]} 13. Nxd5 {[%emt 0:09:47]} Nxd5 {[%emt 0:00:51]} 14. Bxd5 {[%emt 0:03:43]} Qa5+ {[%emt 0:16:30]} 15. c3 {[%emt 0:03:08]} Qb5 {[%emt 0:09:21]} 16. Bb3 {[%emt 0:19:00]} Be7 {[%emt 0:10:19]} 17. a4 {[%emt 0:20:04]} Qa5 {[%emt 0:00:46]} 18. Qd3 {[%emt 0:00:13]} Nd4 {[%emt 0:07:52]} 19. Bxd4 {[%emt 0:00:57]} exd4 {[%emt 0:00:27]} 20. O-O-O {[%emt 0:00:35]} Qb6 {[%emt 0:09:26]} 21. Qc4 {[%emt 0:03:17]} Rg7 {[%emt 0:01:45]} 22. Rhe1 {[%emt 0:01:35]} Bd7 {[%emt 0:03:20]} 23. Qxd4 {[%emt 0:00:53]} Qxd4 {[%emt 0:00:41]} 24. Rxd4 {[%emt 0:00:05]} f6 {[%emt 0:00:47]} 25. Rd6 {[%emt 0:06:42]} O-O-O {[%emt 0:00:59]} 26. Rd3 {[%emt 0:01:18]} Bc6 {[%emt 0:01:18]} 27. Rxd8+ {[%emt 0:00:25]} Bxd8 {[%emt 0:00:51]} 28. Bd1 {[%emt 0:00:27]} Re7 {[%emt 0:00:43]} 29. Re3 {[%emt 0:01:40]} Rxe3 {[%emt 0:00:35]} 30. fxe3 {[%emt 0:00:04]} Kd7 {[%emt 0:00:47]} 31. Kd2 {[%emt 0:00:24]} Kd6 {[%emt 0:00:20]} 32. Kd3 {[%emt 0:00:22]} b5 {[%emt 0:00:30]} 33. axb5 {[%emt 0:00:17]} axb5 {[%emt 0:00:14]} 34. Be2 {[%emt 0:00:44]} Ke5 {[%emt 0:00:57]} 35. b4 {[%emt 0:00:46]} Bb6 {[%emt 0:03:21]} 36. Bf1 {[%emt 0:00:19]} h6 {[%emt 0:00:28]} 37. Kd2 {[%emt 0:00:29]} Kd6 {[%emt 0:00:20]} 38. Kd3 {[%emt 0:00:39]} Ke7 {[%emt 0:00:17]} 39. Kd2 {[%emt 0:00:50]} Kd8 {[%emt 0:00:17]} 40. Kd3 {[%emt 0:00:00]} Kd7 {[%emt 0:00:00]} 41. Kd2 {[%emt 0:01:32]} Bc7 {[%emt 0:06:14]} 42. Kd3 {[%emt 0:01:01]} Bd6 {[%emt 0:00:54]} 43. Kd2 {[%emt 0:04:04]} Be5 {[%emt 0:00:42]} 44. Kc2 {[%emt 0:00:33]} Be4+ {[%emt 0:00:58]} 45. Bd3 {[%emt 0:02:17]} Bc6 {[%emt 0:00:30]} 46. Bf1 Kc7 {[%emt 0:00:21]} 47. Kd2 {[%emt 0:00:32]} Kb6 {[%emt 0:00:15]} 48. Kc2 {[%emt 0:00:35]} Be4+ {[%emt 0:00:27]} 49. Kb3 {[%emt 0:00:47]} Bd5+ {[%emt 0:02:17]} 50. Kc2 {[%emt 0:01:35]} Bg3 {[%emt 0:00:29]} 51. Kd2 {[%emt 0:00:42]} Be4 {[%emt 0:01:36]} 52. Ke2 {[%emt 0:01:47]} Be5 {[%emt 0:00:25]} 53. Kd2 {[%emt 0:00:08]} Kc6 {[%emt 0:00:26]} 54. c4 {[%emt 0:00:23]} bxc4 {[%emt 0:00:22]} 55. Bxc4 {[%emt 0:00:04]} Bg2 {[%emt 0:00:42]} 56. Ke2 {[%emt 0:01:30]} Bd6 {[%emt 0:01:20]} 57. b5+ {[%emt 0:00:40]} Kc5 {[%emt 0:01:20]} 58. Bd3 {[%emt 0:00:08]} Bg3 {[%emt 0:01:46]} 59. Kd2 {[%emt 0:01:41]} Bxh3 {[%emt 0:01:40]} 60. Be2 {[%emt 0:00:02]} Bg2 {[%emt 0:00:42]} 0-1

[Event "EYCC Open-U14 2019"]
[Site "Bratislava"]
[Date "2019.08.09"]
[Round "8.27"]
[White "Liu, Casper"]
[Black "Briem, Benedikt"]
[Result "1-0"]
[ECO "C11"]
[WhiteElo "2194"]
[BlackElo "1901"]
[Annotator "NA"]
[PlyCount "56"]
[EventDate "2019.08.02"]
[EventType "swiss"]
[EventCountry "SVK"]
[SourceTitle "playchess.com"]
[Source "ChessBase"]
[SourceQuality "1"]
[TimeControl "40/5400+30:1800+30"]

1. e4 {[%emt 0:00:00]} e6 {[%emt 0:00:00]} 2. Nf3 {[%emt 0:00:00]} d5 {[%emt 0:00:03]} 3. Nc3 {[%emt 0:00:00]} Nf6 {[%emt 0:00:29]} 4. e5 {[%emt 0:00:00]} Nfd7 {[%emt 0:00:18]} 5. d4 {[%emt 0:00:00]} c5 {[%emt 0:00:11]} 6. dxc5 {[%emt 0:00:00]} Bxc5 {[%emt 0:02:46]} 7. Bd3 {[%emt 0:00:00]} a6 {[%emt 0:03:32]} 8. Bf4 {[%emt 0:01:50]} Nc6 {[%emt 0:02:45]} 9. a3 {[%emt 0:01:55]} b5 {[%emt 0:01:29]} 10. Qe2 {[%emt 0:01:14]} Qc7 {[%emt 0:02:51]} 11. Bg3 {[%emt 0:01:24]} Nb6 {[%emt 0:02:52]} 12. O-O {[%emt 0:02:52]} Bb7 {[%emt 0:04:21]} 13. Rfd1 {[%emt 0:04:15]} O-O-O {[%emt 0:02:26]} 14. a4 {[%emt 0:02:21]} b4 {[%emt 0:02:59]} 15. a5 {[%emt 0:03:21]} Nxa5 {[%emt 0:08:44]} 16. Rxa5 {[%emt 0:08:21]} Nc4 {[%emt 0:02:07]} 17. Rxc5 {[%emt 0:02:31]} Qxc5 {[%emt 0:00:13]} 18. Na4 {[%emt 0:01:17]} Qc7 {[%emt 0:06:22]} 19. b3 {[%emt 0:00:56]} Na3 {[%emt 0:00:17]} 20. Bf4 {[%emt 0:06:09]} a5 {[%emt 0:06:21]} 21. Be3 {[%emt 0:00:34]} d4 {[%emt 0:02:38]} 22. Bxd4 {[%emt 0:00:28]} Bxf3 {[%emt 0:03:08]} 23. Qxf3 {[%emt 0:00:26]} Rxd4 {[%emt 0:04:24]} 24. Bc4 {[%emt 0:00:11]} Kd8 {[%emt 0:01:01]} 25. Ba6 {[%emt 0:00:04]} Ke7 {[%emt 0:00:12]} 26. Rxd4 {[%emt 0:02:52]} Rd8 {[%emt 0:01:00]} 27. Rxd8 {[%emt 0:00:07]} Qxd8 {[%emt 0:00:50]} 28. Qb7+ {[%emt 0:00:05]} Ke8 {[%emt 0:00:14]} 1-0

[Event "EYCC Open-U14 2019"]
[Site "Bratislava"]
[Date "2019.08.09"]
[Round "8.28"]
[White "Czernek, Tymon"]
[Black "Schouten, Mathias Lind"]
[Result "1-0"]
[ECO "B30"]
[WhiteElo "2003"]
[BlackElo "1961"]
[Annotator "NA"]
[PlyCount "129"]
[EventDate "2019.08.02"]
[EventType "swiss"]
[EventCountry "SVK"]
[SourceTitle "playchess.com"]
[Source "ChessBase"]
[SourceQuality "1"]
[TimeControl "40/5400+30:1800+30"]

1. e4 {[%emt 0:00:00]} c5 {[%emt 0:00:00]} 2. Nf3 {[%emt 0:00:00]} Nc6 {[%emt 0:00:00]} 3. d3 {[%emt 0:00:00]} g6 {[%emt 0:00:00]} 4. g3 {[%emt 0:00:00]} Bg7 {[%emt 0:00:00]} 5. Bg2 {[%emt 0:00:00]} e6 {[%emt 0:00:00]} 6. O-O {[%emt 0:00:06]} Nge7 {[%emt 0:00:00]} 7. c3 {[%emt 0:00:18]} d5 {[%emt 0:00:16]} 8. Nbd2 {[%emt 0:00:27]} O-O {[%emt 0:00:09]} 9. Re1 {[%emt 0:00:06]} b6 {[%emt 0:03:50]} 10. e5 {[%emt 0:02:47]} Ba6 {[%emt 0:18:39]} 11. d4 {[%emt 0:01:33]} Nf5 {[%emt 0:04:15]} 12. Nf1 {[%emt 0:03:05]} cxd4 {[%emt 0:12:57]} 13. cxd4 {[%emt 0:00:05]} Qd7 {[%emt 0:01:20]} 14. Ne3 {[%emt 0:01:58]} Nxe3 {[%emt 0:02:20]} 15. Bxe3 {[%emt 0:00:07]} Rfc8 {[%emt 0:02:53]} 16. a3 {[%emt 0:05:57]} Na5 {[%emt 0:03:10]} 17. h4 {[%emt 0:01:00]} Bc4 {[%emt 0:01:44]} 18. Nd2 {[%emt 0:05:23]} Bd3 {[%emt 0:04:56]} 19. h5 {[%emt 0:04:07]} Qb5 {[%emt 0:07:14]} 20. b4 {[%emt 0:01:12]} Nc4 {[%emt 0:05:18]} 21. Nxc4 {[%emt 0:00:35]} Bxc4 {[%emt 0:00:55]} 22. Qd2 {[%emt 0:01:52]} Rc7 {[%emt 0:10:27]} 23. Bh6 {[%emt 0:02:31]} Qe8 {[%emt 0:01:24]} 24. Bxg7 {[%emt 0:02:20]} Kxg7 {[%emt 0:00:04]} 25. hxg6 {[%emt 0:00:18]} hxg6 {[%emt 0:00:05]} 26. Bf3 {[%emt 0:00:16]} Kf8 {[%emt 0:00:36]} 27. Kg2 {[%emt 0:00:45]} Ke7 {[%emt 0:00:51]} 28. Rh1 {[%emt 0:00:36]} Kd7 29. Rh7 {[%emt 0:05:25]} Qe7 {[%emt 0:02:44]} 30. Rah1 {[%emt 0:02:08]} Rf8 {[%emt 0:01:49]} 31. R1h6 {[%emt 0:04:53]} Kc8 {[%emt 0:01:52]} 32. Bg4 {[%emt 0:03:28]} Qe8 {[%emt 0:00:41]} 33. Qf4 {[%emt 0:03:36]} Bd3 {[%emt 0:03:16]} 34. Qf6 {[%emt 0:01:32]} Be4+ {[%emt 0:00:17]} 35. Bf3 {[%emt 0:05:55]} Bxf3+ {[%emt 0:01:22]} 36. Qxf3 {[%emt 0:00:35]} Kb7 {[%emt 0:00:47]} 37. Rh4 {[%emt 0:00:24]} Qb5 {[%emt 0:01:58]} 38. Rg7 {[%emt 0:02:36]} Rc1 {[%emt 0:00:33]} 39. Rxf7+ {[%emt 0:01:02]} Rxf7 {[%emt 0:01:17]} 40. Qxf7+ {[%emt 0:00:00]} Ka6 {[%emt 0:00:00]} 41. Rh1 {[%emt 0:04:48]} Rxh1 {[%emt 0:01:04]} 42. Kxh1 {[%emt 0:00:01]} Qf1+ {[%emt 0:00:35]} 43. Kh2 {[%emt 0:00:06]} g5 {[%emt 0:01:45]} 44. Qxe6 {[%emt 0:03:24]} Qxf2+ {[%emt 0:00:47]} 45. Kh3 {[%emt 0:00:03]} Qxd4 {[%emt 0:01:26]} 46. Qc8+ {[%emt 0:00:55]} Kb5 {[%emt 0:00:05]} 47. Qd7+ {[%emt 0:00:57]} Kc4 {[%emt 0:00:16]} 48. Qf5 {[%emt 0:04:33]} Qd1 {[%emt 0:03:43]} 49. Qxg5 {[%emt 0:09:35]} d4 {[%emt 0:00:26]} 50. Qf4 {[%emt 0:04:30]} Qe2 {[%emt 0:02:27]} 51. Qf7+ {[%emt 0:01:05]} Kc3 {[%emt 0:00:55]} 52. e6 {[%emt 0:00:09]} d3 {[%emt 0:01:37]} 53. e7 {[%emt 0:00:29]} d2 {[%emt 0:00:13]} 54. e8=Q {[%emt 0:00:51]} Qxe8 {[%emt 0:00:06]} 55. Qxe8 {[%emt 0:00:05]} d1=Q {[%emt 0:00:11]} 56. Qe3+ {[%emt 0:00:07]} Kb2 {[%emt 0:00:51]} 57. g4 {[%emt 0:00:09]} Qd7 {[%emt 0:00:32]} 58. Kg3 {[%emt 0:00:31]} Qd6+ {[%emt 0:00:55]} 59. Kf3 {[%emt 0:02:48]} Qc6+ {[%emt 0:01:06]} 60. Kf2 {[%emt 0:01:12]} Qf6+ {[%emt 0:02:07]} 61. Ke2 {[%emt 0:00:08]} Qc6 {[%emt 0:03:49]} 62. g5 {[%emt 0:00:38]} Qg2+ {[%emt 0:01:04]} 63. Kd3 {[%emt 0:01:21]} Kxa3 {[%emt 0:00:59]} 64. Qc1+ {[%emt 0:00:34]} Kb3 {[%emt 0:02:54]} 65. Qc3+ {[%emt 0:00:07]} 1-0

[Event "EYCC Open-U14 2019"]
[Site "Bratislava"]
[Date "2019.08.09"]
[Round "8.29"]
[White "Grahn, Vidar"]
[Black "Jun, Rudolf Jr."]
[Result "0-1"]
[ECO "B83"]
[WhiteElo "1980"]
[BlackElo "2200"]
[Annotator "NA"]
[PlyCount "94"]
[EventDate "2019.08.02"]
[EventType "swiss"]
[EventCountry "SVK"]
[SourceTitle "playchess.com"]
[Source "ChessBase"]
[SourceQuality "1"]
[TimeControl "40/5400+30:1800+30"]

1. e4 {[%emt 0:00:00]} c5 {[%emt 0:00:00]} 2. Nf3 {[%emt 0:00:00]} e6 {[%emt 0:00:00]} 3. d4 {[%emt 0:00:00]} cxd4 {[%emt 0:00:00]} 4. Nxd4 {[%emt 0:00:00]} Nf6 {[%emt 0:00:40]} 5. Nc3 {[%emt 0:00:00]} d6 {[%emt 0:00:16]} 6. Be2 {[%emt 0:00:06]} Be7 {[%emt 0:00:24]} 7. O-O {[%emt 0:00:07]} a6 {[%emt 0:02:11]} 8. f4 {[%emt 0:02:58]} Qc7 {[%emt 0:00:51]} 9. Kh1 {[%emt 0:00:18]} O-O {[%emt 0:00:10]} 10. a4 {[%emt 0:00:49]} Nbd7 {[%emt 0:00:43]} 11. Be3 {[%emt 0:02:15]} b6 {[%emt 0:00:14]} 12. Bf3 {[%emt 0:04:19]} Bb7 {[%emt 0:01:17]} 13. Nb3 {[%emt 0:01:00]} Rac8 {[%emt 0:01:43]} 14. g4 {[%emt 0:12:05]} Nc5 {[%emt 0:00:14]} 15. Nxc5 {[%emt 0:01:20]} bxc5 {[%emt 0:01:15]} 16. g5 {[%emt 0:03:23]} Nd7 {[%emt 0:01:55]} 17. Qe2 {[%emt 0:05:59]} Rfe8 {[%emt 0:04:55]} 18. Qg2 {[%emt 0:06:56]} Nb6 {[%emt 0:00:59]} 19. b3 {[%emt 0:02:47]} d5 {[%emt 0:08:30]} 20. a5 {[%emt 0:08:26]} dxe4 {[%emt 0:00:15]} 21. Nxe4 {[%emt 0:00:43]} Nd5 {[%emt 0:06:45]} 22. Bc1 {[%emt 0:02:13]} Ba8 {[%emt 0:01:40]} 23. c4 {[%emt 0:05:29]} Nxf4 {[%emt 0:05:36]} 24. Bxf4 {[%emt 0:00:17]} Qxf4 {[%emt 0:00:04]} 25. Nf6+ {[%emt 0:02:23]} Bxf6 {[%emt 0:00:26]} 26. gxf6 {[%emt 0:00:41]} Qh6 {[%emt 0:00:22]} 27. fxg7 {[%emt 0:03:13]} Qg6 {[%emt 0:01:03]} 28. Bxa8 {[%emt 0:01:19]} Rxa8 {[%emt 0:00:04]} 29. Qf2 {[%emt 0:00:59]} Qe4+ {[%emt 0:01:38]} 30. Kg1 {[%emt 0:00:35]} Qd4 {[%emt 0:02:12]} 31. Rad1 {[%emt 0:02:38]} Qxf2+ {[%emt 0:00:21]} 32. Rxf2 {[%emt 0:00:18]} Re7 {[%emt 0:01:02]} 33. Rd6 {[%emt 0:02:21]} Kxg7 {[%emt 0:02:20]} 34. Rc6 {[%emt 0:02:11]} f5 {[%emt 0:01:30]} 35. Rxc5 {[%emt 0:00:41]} Kf6 {[%emt 0:00:18]} 36. Rc6 {[%emt 0:00:46]} Kg5 {[%emt 0:03:41]} 37. c5 {[%emt 0:04:13]} e5 {[%emt 0:00:20]} 38. Rd6 {[%emt 0:00:32]} e4 {[%emt 0:00:52]} 39. Kf1 {[%emt 0:04:42]} e3 {[%emt 0:02:31]} 40. h4+ {[%emt 0:00:00]} Kg4 {[%emt 0:00:00]} 41. Rd4+ {[%emt 0:07:21]} Kg3 {[%emt 0:02:14]} 42. Rxf5 {[%emt 0:02:28]} e2+ {[%emt 0:00:05]} 43. Ke1 {[%emt 0:00:42]} Rae8 {[%emt 0:00:24]} 44. c6 {[%emt 0:08:02]} Re3 {[%emt 0:00:34]} 45. Rfd5 {[%emt 0:00:35]} Rf8 {[%emt 0:00:29]} 46. Rg5+ {[%emt 0:01:33]} Kh2 {[%emt 0:00:06]} 47. Rdg4 {[%emt 0:00:56]} Rf1+ {[%emt 0:00:14]} 0-1

[Event "EYCC Open-U14 2019"]
[Site "Bratislava"]
[Date "2019.08.09"]
[Round "8.30"]
[White "Pegno, Mattia"]
[Black "Cappelletto, Joshuaede"]
[Result "0-1"]
[ECO "B92"]
[WhiteElo "1821"]
[BlackElo "2138"]
[Annotator "NA"]
[PlyCount "102"]
[EventDate "2019.08.02"]
[EventType "swiss"]
[EventCountry "SVK"]
[SourceTitle "playchess.com"]
[Source "ChessBase"]
[SourceQuality "1"]
[TimeControl "40/5400+30:1800+30"]

1. e4 {[%emt 0:00:00]} c5 {[%emt 0:00:00]} 2. Nf3 {[%emt 0:00:00]} d6 {[%emt 0:00:00]} 3. d4 {[%emt 0:00:03]} cxd4 {[%emt 0:00:00]} 4. Nxd4 {[%emt 0:00:08]} Nf6 {[%emt 0:00:00]} 5. Nc3 {[%emt 0:00:32]} a6 {[%emt 0:00:02]} 6. Be2 {[%emt 0:00:24]} e5 {[%emt 0:00:47]} 7. Nb3 {[%emt 0:00:29]} Be7 {[%emt 0:00:11]} 8. O-O {[%emt 0:00:46]} O-O {[%emt 0:00:07]} 9. Be3 {[%emt 0:01:08]} Be6 {[%emt 0:02:11]} 10. f3 {[%emt 0:04:49]} Qc7 {[%emt 0:03:10]} 11. Qd2 {[%emt 0:02:07]} Nbd7 {[%emt 0:01:22]} 12. Rfd1 {[%emt 0:06:30]} Nb6 {[%emt 0:08:30]} 13. Kh1 {[%emt 0:08:17]} Rfd8 {[%emt 0:08:46]} 14. Bxb6 {[%emt 0:04:59]} Qxb6 {[%emt 0:00:08]} 15. Nd5 {[%emt 0:00:18]} Nxd5 {[%emt 0:04:55]} 16. exd5 {[%emt 0:00:18]} Bf5 {[%emt 0:00:28]} 17. Bd3 {[%emt 0:07:38]} Bd7 {[%emt 0:01:31]} 18. c4 {[%emt 0:11:11]} Kh8 {[%emt 0:00:49]} 19. Qa5 {[%emt 0:08:18]} Qf2 {[%emt 0:05:24]} 20. Qd2 {[%emt 0:05:20]} Qh4 {[%emt 0:02:39]} 21. Na5 {[%emt 0:05:52]} Bg5 {[%emt 0:04:47]} 22. Qe1 {[%emt 0:06:03]} Qh6 {[%emt 0:00:10]} 23. b3 {[%emt 0:03:08]} Rab8 {[%emt 0:01:06]} 24. Rab1 {[%emt 0:06:48]} f5 {[%emt 0:07:46]} 25. Rb2 {[%emt 0:03:43]} Rf8 {[%emt 0:03:47]} 26. b4 {[%emt 0:02:07]} Be3 {[%emt 0:03:31]} 27. Re2 {[%emt 0:03:54]} f4 {[%emt 0:01:24]} 28. Rxe3 {[%emt 0:01:07]} fxe3 {[%emt 0:00:08]} 29. Be4 {[%emt 0:00:41]} Bf5 {[%emt 0:12:25]} 30. Bxf5 {[%emt 0:03:24]} Rxf5 {[%emt 0:00:06]} 31. Rd3 {[%emt 0:00:55]} e4 {[%emt 0:06:01]} 32. Rxe3 {[%emt 0:01:50]} exf3 {[%emt 0:01:48]} 33. Rxf3 {[%emt 0:01:30]} Rxf3 {[%emt 0:00:55]} 34. gxf3 {[%emt 0:00:06]} b6 {[%emt 0:00:49]} 35. Nc6 {[%emt 0:01:07]} Rf8 {[%emt 0:00:08]} 36. Nd4 {[%emt 0:01:10]} Qf4 {[%emt 0:01:56]} 37. Qg1 {[%emt 0:01:05]} h6 {[%emt 0:02:37]} 38. a3 {[%emt 0:00:31]} Rc8 {[%emt 0:00:56]} 39. Qxg7+ {[%emt 0:00:36]} Kxg7 {[%emt 0:00:11]} 40. Ne6+ {[%emt 0:00:00]} Kf7 {[%emt 0:00:00]} 41. Nxf4 {[%emt 0:00:15]} Rxc4 {[%emt 0:00:57]} 42. Ne2 {[%emt 0:04:51]} Rc2 {[%emt 0:00:08]} 43. Ng3 {[%emt 0:00:29]} Kf6 {[%emt 0:00:33]} 44. f4 {[%emt 0:00:40]} Ra2 {[%emt 0:00:17]} 45. Ne4+ {[%emt 0:00:12]} Kf5 {[%emt 0:00:40]} 46. Nxd6+ {[%emt 0:00:46]} Kxf4 {[%emt 0:00:08]} 47. Nf7 {[%emt 0:01:15]} Kf3 {[%emt 0:03:21]} 48. Ne5+ {[%emt 0:01:23]} Ke4 {[%emt 0:00:17]} 49. Nd7 {[%emt 0:02:24]} Rxa3 {[%emt 0:01:42]} 50. Nxb6 {[%emt 0:00:43]} Kf3 {[%emt 0:00:13]} 51. h4 {[%emt 0:00:30]} Kg3 {[%emt 0:00:05]} 0-1

[Event "EYCC Open-U14 2019"]
[Site "Bratislava"]
[Date "2019.08.09"]
[Round "8.31"]
[White "Fardet, Elouan"]
[Black "Sahakyan, Aleks"]
[Result "0-1"]
[ECO "B91"]
[WhiteElo "2047"]
[BlackElo "1856"]
[Annotator "NA"]
[PlyCount "72"]
[EventDate "2019.08.02"]
[EventType "swiss"]
[EventCountry "SVK"]
[SourceTitle "playchess.com"]
[Source "ChessBase"]
[SourceQuality "1"]
[TimeControl "40/5400+30:1800+30"]

1. e4 {[%emt 0:00:00]} c5 {[%emt 0:00:00]} 2. Nf3 {[%emt 0:00:00]} d6 {[%emt 0:00:00]} 3. d4 {[%emt 0:00:00]} cxd4 {[%emt 0:00:00]} 4. Nxd4 {[%emt 0:00:00]} Nf6 {[%emt 0:00:00]} 5. Nc3 {[%emt 0:00:00]} a6 {[%emt 0:00:00]} 6. g3 {[%emt 0:00:00]} e5 {[%emt 0:02:41]} 7. Nde2 {[%emt 0:00:07]} Be6 {[%emt 0:00:20]} 8. Bg2 {[%emt 0:00:11]} b5 {[%emt 0:01:41]} 9. h3 {[%emt 0:02:07]} h5 {[%emt 0:04:07]} 10. O-O {[%emt 0:12:45]} Nbd7 {[%emt 0:05:06]} 11. Nd5 {[%emt 0:03:04]} Bxd5 {[%emt 0:03:21]} 12. exd5 {[%emt 0:00:36]} Rc8 {[%emt 0:00:15]} 13. Be3 {[%emt 0:07:10]} Nb6 {[%emt 0:01:41]} 14. b3 {[%emt 0:01:18]} Be7 {[%emt 0:01:15]} 15. Qd2 {[%emt 0:07:02]} Qc7 {[%emt 0:04:40]} 16. Rfc1 {[%emt 0:05:23]} O-O {[%emt 0:02:25]} 17. a4 {[%emt 0:12:05]} bxa4 {[%emt 0:04:47]} 18. Bxb6 {[%emt 0:00:08]} Qxb6 {[%emt 0:00:01]} 19. Rxa4 {[%emt 0:00:22]} Nd7 {[%emt 0:00:29]} 20. Qa5 {[%emt 0:10:12]} Bg5 {[%emt 0:05:38]} 21. Rca1 {[%emt 0:05:16]} Qxa5 {[%emt 0:03:08]} 22. Rxa5 {[%emt 0:00:18]} Rxc2 {[%emt 0:00:04]} 23. Kf1 {[%emt 0:00:54]} Nc5 {[%emt 0:00:42]} 24. Rb1 {[%emt 0:07:11]} Rb8 {[%emt 0:02:34]} 25. Ra3 {[%emt 0:07:46]} Bd2 {[%emt 0:04:54]} 26. f4 {[%emt 0:04:57]} Bb4 {[%emt 0:00:52]} 27. Raa1 {[%emt 0:00:40]} f6 {[%emt 0:00:51]} 28. f5 {[%emt 0:01:25]} a5 {[%emt 0:03:04]} 29. Bf3 {[%emt 0:01:22]} Bd2 {[%emt 0:08:39]} 30. Ra3 {[%emt 0:01:01]} a4 {[%emt 0:00:31]} 31. b4 {[%emt 0:02:36]} Rxb4 {[%emt 0:01:23]} 32. Raa1 {[%emt 0:00:13]} a3 {[%emt 0:04:07]} 33. Rxb4 {[%emt 0:01:19]} Bxb4 {[%emt 0:00:02]} 34. Bxh5 {[%emt 0:00:49]} a2 {[%emt 0:00:12]} 35. Nc1 {[%emt 0:00:05]} Rxc1+ {[%emt 0:01:01]} 36. Rxc1 {[%emt 0:00:06]} Bc3 {[%emt 0:00:02]} 0-1